[Event "30th Tamil Nadu IM Norm 2024"]
[Site "Coimbatore"]
[Date "2024.09.30"]
[Round "1.1"]
[White "Mohamed Anees M"]
[Black "Bharadia Yash"]
[Result "1/2-1/2"]
[ECO "A12"]
[WhiteElo "2347"]
[BlackElo "2415"]
[Annotator "RC"]
[PlyCount "164"]
[EventDate "2024.09.15"]
[EventCountry "IND"]
[SourceTitle "playchess.com"]
[Source "ChessBase"]
[SourceQuality "1"]
[TimeControl "5400+30"]

1. b3 {[%emt 0:00:09]} d5 {[%emt 0:03:13]} 2. Bb2 {[%emt 0:00:07]} Bf5 {[%emt 0:01:17]} 3. Nf3 {[%emt 0:00:09]} e6 {[%emt 0:00:04]} 4. g3 {[%emt 0:01:04]} Nf6 {[%emt 0:00:19]} 5. Bg2 {[%emt 0:00:08]} Be7 {[%emt 0:03:19]} 6. d3 {[%emt 0:00:08]} h6 {[%emt 0:00:51]} 7. Nbd2 {[%emt 0:00:11]} O-O {[%emt 0:01:08]} 8. c4 {[%emt 0:00:22]} c6 {[%emt 0:00:37]} 9. O-O {[%emt 0:00:29]} Nbd7 {[%emt 0:00:52]} 10. Rc1 {[%emt 0:03:31]} Bh7 {[%emt 0:03:23]} 11. Rc2 {[%emt 0:09:48]} a5 {[%emt 0:07:00]} 12. a3 {[%emt 0:00:08]} Bd6 {[%emt 0:14:25]} 13. Qa1 {[%emt 0:06:08]} Qe7 {[%emt 0:05:41]} 14. Rcc1 {[%emt 0:02:28]} e5 {[%emt 0:02:03]} 15. cxd5 {[%emt 0:02:03]} cxd5 {[%emt 0:00:34]} 16. Ne1 {[%emt 0:02:31]} Qe6 {[%emt 0:09:41]} 17. Nc2 {[%emt 0:05:52]} Bf5 {[%emt 0:02:49]} 18. Ne3 {[%emt 0:30:25]} Bh3 {[%emt 0:00:31]} 19. a4 {[%emt 0:02:07]} Bxg2 {[%emt 0:06:43]} 20. Kxg2 {[%emt 0:00:02]} Bb4 {[%emt 0:05:22]} 21. Nf3 {[%emt 0:02:20]} d4 {[%emt 0:00:53]} 22. Nc4 {[%emt 0:01:29]} Nd5 {[%emt 0:00:21]} 23. Qb1 {[%emt 0:02:02]} f5 {[%emt 0:05:02]} 24. e3 {[%emt 0:06:41]} dxe3 {[%emt 0:03:38]} 25. fxe3 {[%emt 0:00:06]} e4 {[%emt 0:05:09]} 26. Nd4 {[%emt 0:01:31]} Qg6 {[%emt 0:01:15]} 27. Nxf5 {[%emt 0:03:15]} Rxf5 {[%emt 0:08:36]} 28. Rxf5 {[%emt 0:00:05]} Qxf5 {[%emt 0:00:10]} 29. dxe4 {[%emt 0:00:04]} Qh5 {[%emt 0:00:51]} 30. exd5 {[%emt 0:00:14]} Nc5 {[%emt 0:01:53]} 31. Qc2 {[%emt 0:05:23]} Qxd5+ {[%emt 0:05:21]} 32. Kg1 {[%emt 0:00:03]} Qe6 {[%emt 0:00:26]} 33. Rf1 {[%emt 0:02:09]} Rc8 {[%emt 0:00:26]} 34. Rf4 {[%emt 0:00:53]} Nd7 {[%emt 0:02:14]} 35. Re4 {[%emt 0:05:23]} Qh3 {[%emt 0:01:17]} 36. Qd1 {[%emt 0:00:35]} Rf8 {[%emt 0:00:29]} 37. Rh4 {[%emt 0:06:30]} Qe6 {[%emt 0:00:10]} 38. Qd4 {[%emt 0:01:06]} Qg6 {[%emt 0:00:51]} 39. Qd5+ {[%emt 0:01:37]} Kh7 {[%emt 0:00:24]} 40. Qe4 {[%emt 0:00:09]} Qxe4 {[%emt 0:00:38]} 41. Rxe4 {[%emt 0:00:01]} Nc5 {[%emt 0:00:26]} 42. Re7 {[%emt 0:00:05]} Rg8 {[%emt 0:00:03]} 43. Rc7 {[%emt 0:01:33]} Nxb3 {[%emt 0:00:07]} 44. Rxb7 {[%emt 0:00:05]} Nc5 {[%emt 0:00:05]} 45. Ra7 {[%emt 0:00:03]} Nxa4 {[%emt 0:01:17]} 46. Bd4 {[%emt 0:00:19]} Nc3 {[%emt 0:00:10]} 47. Nxa5 {[%emt 0:01:08]} Ne2+ {[%emt 0:00:26]} 48. Kf2 {[%emt 0:00:28]} Nxd4 {[%emt 0:00:07]} 49. exd4 {[%emt 0:00:03]} Rc8 {[%emt 0:00:15]} 50. Ke3 {[%emt 0:01:40]} Rc2 {[%emt 0:00:14]} 51. Ke4 {[%emt 0:00:37]} Rxh2 {[%emt 0:00:58]} 52. Nc6 {[%emt 0:00:19]} Bd6 {[%emt 0:01:24]} 53. Ne5 {[%emt 0:00:09]} Rg2 {[%emt 0:00:21]} 54. Kf3 {[%emt 0:00:50]} Rd2 {[%emt 0:00:24]} 55. Ke3 {[%emt 0:00:33]} Rg2 {[%emt 0:00:29]} 56. Kf3 {[%emt 0:00:05]} Rd2 {[%emt 0:00:05]} 57. Ra4 {[%emt 0:00:29]} Rxd4 {[%emt 0:01:11]} 58. Rxd4 {[%emt 0:00:07]} Bxe5 {[%emt 0:00:03]} 59. Rd5 {[%emt 0:00:37]} Bf6 {[%emt 0:00:06]} 60. Ke4 {[%emt 0:00:08]} Kg6 {[%emt 0:00:10]} 61. Kf4 {[%emt 0:00:22]} Bg5+ {[%emt 0:00:35]} 62. Kg4 {[%emt 0:00:05]} Bc1 {[%emt 0:00:30]} 63. Rd6+ {[%emt 0:00:06]} Kh7 {[%emt 0:00:03]} 64. Kf5 {[%emt 0:00:05]} Bg5 {[%emt 0:00:08]} 65. Rc6 {[%emt 0:01:26]} Bd2 {[%emt 0:00:18]} 66. Ke6 {[%emt 0:01:12]} Be3 {[%emt 0:00:41]} 67. Kf7 {[%emt 0:00:08]} Bd4 {[%emt 0:01:13]} 68. g4 {[%emt 0:00:06]} Bf6 {[%emt 0:00:34]} 69. Rd6 {[%emt 0:00:47]} Be5 {[%emt 0:00:46]} 70. Re6 {[%emt 0:00:18]} Bf6 {[%emt 0:00:36]} 71. Rc6 {[%emt 0:00:04]} Bg5 {[%emt 0:01:20]} 72. Rc5 {[%emt 0:01:20]} Bf6 {[%emt 0:00:09]} 73. Rb5 {[%emt 0:00:05]} Bg5 {[%emt 0:00:25]} 74. Rb8 {[%emt 0:01:03]} Bf6 {[%emt 0:00:23]} 75. Rg8 {[%emt 0:00:12]} Be5 {[%emt 0:00:08]} 76. Re8 {[%emt 0:01:15]} Bf6 {[%emt 0:00:09]} 77. Re6 {[%emt 0:00:04]} Bg5 {[%emt 0:00:33]} 78. Rb6 {[%emt 0:00:37]} Bf6 {[%emt 0:00:08]} 79. Rxf6 {[%emt 0:00:59]} gxf6 {[%emt 0:00:02]} 80. Kxf6 {[%emt 0:00:05]} h5 {[%emt 0:00:08]} 81. gxh5 {[%emt 0:00:04]} Kh6 {[%emt 0:00:04]} 82. Kf5 {[%emt 0:00:05]} Kxh5 {[%emt 0:00:04]} 1/2-1/2

[Event "30th Tamil Nadu IM Norm 2024"]
[Site "Coimbatore"]
[Date "2024.09.30"]
[Round "1.3"]
[White "Nandish V S"]
[Black "Aakash G"]
[Result "0-1"]
[ECO "D35"]
[WhiteElo "2212"]
[BlackElo "2279"]
[Annotator "RC"]
[PlyCount "72"]
[EventDate "2024.09.15"]
[EventCountry "IND"]
[SourceTitle "playchess.com"]
[Source "ChessBase"]
[SourceQuality "1"]
[TimeControl "5400+30"]

1. c4 {[%emt 0:00:02]} e6 {[%emt 0:00:11]} 2. Nc3 {[%emt 0:00:04]} d5 {[%emt 0:00:48]} 3. d4 {[%emt 0:00:10]} Be7 {[%emt 0:00:06]} 4. cxd5 {[%emt 0:00:09]} exd5 {[%emt 0:00:04]} 5. Bf4 {[%emt 0:00:05]} Nf6 {[%emt 0:00:11]} 6. e3 {[%emt 0:00:05]} O-O {[%emt 0:00:51]} 7. Bd3 {[%emt 0:00:07]} Re8 {[%emt 0:02:27]} 8. Qc2 {[%emt 0:00:55]} c6 {[%emt 0:01:56]} 9. Nge2 {[%emt 0:01:35]} Nbd7 {[%emt 0:02:04]} 10. O-O {[%emt 0:01:30]} Nf8 {[%emt 0:00:15]} 11. Rab1 {[%emt 0:02:49]} Bd6 {[%emt 0:02:17]} 12. b4 {[%emt 0:02:15]} Bxf4 {[%emt 0:00:17]} 13. Nxf4 {[%emt 0:00:25]} Qd6 {[%emt 0:00:04]} 14. b5 {[%emt 0:05:16]} Ng4 {[%emt 0:08:02]} 15. bxc6 {[%emt 0:07:13]} bxc6 {[%emt 0:01:06]} 16. Bf5 {[%emt 0:15:51]} g5 {[%emt 0:07:20]} 17. Bxg4 {[%emt 0:14:15]} gxf4 {[%emt 0:00:17]} 18. Bxc8 {[%emt 0:03:38]} Raxc8 {[%emt 0:01:24]} 19. Qf5 {[%emt 0:12:37]} Ne6 {[%emt 0:03:42]} 20. Ne2 {[%emt 0:05:53]} fxe3 {[%emt 0:07:15]} 21. fxe3 {[%emt 0:00:09]} Rc7 {[%emt 0:00:48]} 22. Rf3 {[%emt 0:07:28]} Ng7 {[%emt 0:00:40]} 23. Qh3 {[%emt 0:01:33]} Qe6 {[%emt 0:03:47]} 24. Qg3 {[%emt 0:00:44]} Rce7 {[%emt 0:01:50]} 25. Nf4 {[%emt 0:01:28]} Qe4 {[%emt 0:05:00]} 26. Rbf1 {[%emt 0:00:53]} Kh8 {[%emt 0:00:20]} 27. Nh3 {[%emt 0:03:43]} Qg6 {[%emt 0:04:32]} 28. Ng5 {[%emt 0:01:44]} f5 {[%emt 0:03:17]} 29. Qh4 {[%emt 0:08:13]} Rxe3 {[%emt 0:04:03]} 30. Rxe3 {[%emt 0:00:08]} Rxe3 {[%emt 0:00:04]} 31. Nf3 {[%emt 0:01:54]} Re2 {[%emt 0:12:47]} 32. Rf2 {[%emt 0:00:42]} Re4 {[%emt 0:11:53]} 33. Qd8+ {[%emt 0:00:43]} Re8 {[%emt 0:00:55]} 34. Qc7 {[%emt 0:00:31]} Qh6 {[%emt 0:00:44]} 35. Qxa7 {[%emt 0:02:02]} Qe3 {[%emt 0:00:11]} 36. Ne5 {[%emt 0:00:16]} Rxe5 {[%emt 0:00:14]} 0-1

[Event "30th Tamil Nadu IM Norm 2024"]
[Site "Coimbatore"]
[Date "2024.09.30"]
[Round "1.4"]
[White "Dhruva Thota"]
[Black "Arnav Maheshwari"]
[Result "1-0"]
[ECO "C02"]
[WhiteElo "2342"]
[BlackElo "2293"]
[Annotator "RC"]
[PlyCount "165"]
[EventDate "2024.09.15"]
[EventCountry "IND"]
[SourceTitle "playchess.com"]
[Source "ChessBase"]
[SourceQuality "1"]
[TimeControl "5400+30"]

1. e4 {[%emt 0:00:24]} e6 {[%emt 0:01:10]} 2. d4 {[%emt 0:00:59]} d5 {[%emt 0:00:10]} 3. e5 {[%emt 0:00:55]} c5 {[%emt 0:00:10]} 4. c3 {[%emt 0:00:17]} Bd7 {[%emt 0:00:12]} 5. a3 {[%emt 0:01:06]} Nc6 {[%emt 0:06:51]} 6. Nf3 {[%emt 0:01:35]} c4 {[%emt 0:03:39]} 7. Nbd2 {[%emt 0:03:56]} Na5 {[%emt 0:01:14]} 8. h4 {[%emt 0:04:56]} h6 {[%emt 0:04:17]} 9. g3 {[%emt 0:06:26]} Ne7 {[%emt 0:01:21]} 10. Bh3 {[%emt 0:05:44]} Nc8 {[%emt 0:03:48]} 11. O-O {[%emt 0:03:39]} Nb6 {[%emt 0:02:21]} 12. h5 {[%emt 0:05:50]} Na4 {[%emt 0:09:37]} 13. Nh4 {[%emt 0:07:33]} Qb6 {[%emt 0:12:33]} 14. Qg4 {[%emt 0:15:12]} O-O-O {[%emt 0:05:07]} 15. Ng2 {[%emt 0:02:51]} Kb8 {[%emt 0:09:57]} 16. Ne3 {[%emt 0:04:45]} Nb3 {[%emt 0:23:03]} 17. Nxb3 {[%emt 0:09:26]} cxb3 {[%emt 0:00:09]} 18. Qf3 {[%emt 0:09:23]} Be8 {[%emt 0:01:54]} 19. Bg2 {[%emt 0:05:12]} Rc8 {[%emt 0:01:55]} 20. Rb1 {[%emt 0:01:34]} Rc7 {[%emt 0:03:30]} 21. Re1 {[%emt 0:03:10]} Be7 {[%emt 0:01:58]} 22. Nf1 {[%emt 0:01:22]} Rc8 {[%emt 0:05:54]} 23. Be3 {[%emt 0:01:36]} g6 {[%emt 0:00:33]} 24. Nd2 {[%emt 0:01:27]} gxh5 {[%emt 0:00:26]} 25. Qxh5 {[%emt 0:01:33]} f6 {[%emt 0:00:36]} 26. Qg4 {[%emt 0:00:33]} Rf8 {[%emt 0:00:34]} 27. Bxh6 {[%emt 0:00:39]} f5 {[%emt 0:00:11]} 28. Qd1 {[%emt 0:00:32]} Rh8 {[%emt 0:00:35]} 29. Bf4 {[%emt 0:00:34]} Bxa3 {[%emt 0:00:34]} 30. bxa3 {[%emt 0:00:48]} b2 {[%emt 0:00:13]} 31. Qb3 {[%emt 0:00:50]} Qc7 {[%emt 0:00:55]} 32. Re3 {[%emt 0:00:40]} Bc6 {[%emt 0:00:30]} 33. Nf3 {[%emt 0:00:40]} a6 {[%emt 0:00:25]} 34. Ng5 {[%emt 0:00:43]} Qe7 {[%emt 0:00:33]} 35. Qb4 {[%emt 0:00:26]} Qxb4 {[%emt 0:00:32]} 36. axb4 {[%emt 0:00:26]} Bd7 {[%emt 0:00:08]} 37. Bf3 {[%emt 0:00:24]} Ka7 {[%emt 0:00:42]} 38. Be2 {[%emt 0:00:46]} Rc7 {[%emt 0:00:32]} 39. Rd3 {[%emt 0:00:32]} Bb5 {[%emt 0:00:33]} 40. Rd2 {[%emt 0:00:31]} Bxe2 {[%emt 0:00:33]} 41. Rxe2 {[%emt 0:00:13]} Nxc3 {[%emt 0:00:13]} 42. Rexb2 {[%emt 0:00:23]} Nxb1 {[%emt 0:00:07]} 43. Rxb1 {[%emt 0:00:11]} Re8 {[%emt 0:00:23]} 44. Kg2 {[%emt 0:01:06]} Kb6 {[%emt 0:00:16]} 45. Rh1 {[%emt 0:00:33]} Kb5 {[%emt 0:00:17]} 46. Bd2 {[%emt 0:00:12]} b6 {[%emt 0:00:48]} 47. Rh6 {[%emt 0:00:24]} Rce7 {[%emt 0:00:18]} 48. f3 {[%emt 0:00:42]} Kc4 {[%emt 0:00:28]} 49. Rh4 {[%emt 0:00:36]} Kd3 {[%emt 0:00:24]} 50. Be1 {[%emt 0:00:28]} Ra7 {[%emt 0:01:31]} 51. Rh6 {[%emt 0:00:38]} Rae7 {[%emt 0:00:06]} 52. g4 {[%emt 0:00:31]} fxg4 {[%emt 0:00:32]} 53. fxg4 {[%emt 0:00:10]} Kxd4 {[%emt 0:00:35]} 54. Nf3+ {[%emt 0:00:26]} Kc4 {[%emt 0:00:47]} 55. g5 {[%emt 0:00:28]} d4 {[%emt 0:00:24]} 56. Rh4 {[%emt 0:00:23]} Rd7 {[%emt 0:00:08]} 57. g6 {[%emt 0:00:38]} Ra8 {[%emt 0:01:16]} 58. Rg4 {[%emt 0:00:49]} a5 {[%emt 0:00:15]} 59. bxa5 {[%emt 0:00:06]} bxa5 {[%emt 0:00:03]} 60. Bf2 {[%emt 0:00:22]} a4 {[%emt 0:00:53]} 61. Bxd4 {[%emt 0:00:54]} a3 {[%emt 0:00:26]} 62. Kg3 {[%emt 0:00:39]} Rg8 {[%emt 0:00:32]} 63. Kh4 {[%emt 0:00:31]} Kb3 {[%emt 0:00:47]} 64. Kg5 {[%emt 0:00:34]} Rf8 {[%emt 0:00:27]} 65. Rg3 {[%emt 0:00:24]} a2 {[%emt 0:00:23]} 66. Ba1 {[%emt 0:00:34]} Rd1 {[%emt 0:00:42]} 67. Nd4+ {[%emt 0:00:33]} Kc4 {[%emt 0:00:05]} 68. Nc2 {[%emt 0:00:27]} Kc5 {[%emt 0:00:55]} 69. g7 {[%emt 0:00:26]} Rg8 {[%emt 0:00:06]} 70. Kg6 {[%emt 0:00:13]} Rgd8 {[%emt 0:00:49]} 71. Bb2 {[%emt 0:00:46]} R1d2 {[%emt 0:00:35]} 72. Ba3+ {[%emt 0:00:37]} Kb5 {[%emt 0:00:31]} 73. Bf8 {[%emt 0:00:32]} Rxc2 {[%emt 0:00:11]} 74. Rg1 {[%emt 0:00:27]} Rg2+ {[%emt 0:00:35]} 75. Rxg2 {[%emt 0:00:03]} a1=Q {[%emt 0:00:08]} 76. g8=Q {[%emt 0:00:27]} Qb1+ {[%emt 0:00:17]} 77. Kf7 {[%emt 0:00:56]} Kc6 {[%emt 0:01:20]} 78. Rf2 {[%emt 0:00:38]} Qb7+ {[%emt 0:00:32]} 79. Kf6 {[%emt 0:00:24]} Qb1 {[%emt 0:00:28]} 80. Qg2+ {[%emt 0:00:08]} Rd5 {[%emt 0:00:26]} 81. Rc2+ {[%emt 0:00:10]} Kd7 {[%emt 0:00:05]} 82. Qg7+ {[%emt 0:00:18]} Kd8 {[%emt 0:00:07]} 83. Qe7# {[%emt 0:00:02]} 1-0

[Event "30th Tamil Nadu IM Norm 2024"]
[Site "Coimbatore"]
[Date "2024.09.30"]
[Round "1.5"]
[White "Annageldyev, Orazly"]
[Black "Manik, Mikulas"]
[Result "0-1"]
[ECO "B07"]
[WhiteElo "2105"]
[BlackElo "2316"]
[Annotator "RC"]
[PlyCount "82"]
[EventDate "2024.09.15"]
[EventCountry "IND"]
[SourceTitle "playchess.com"]
[Source "ChessBase"]
[SourceQuality "1"]
[TimeControl "5400+30"]

1. d4 {[%emt 0:00:06]} Nf6 {[%emt 0:00:02]} 2. Nf3 {[%emt 0:00:08]} g6 {[%emt 0:00:01]} 3. g3 {[%emt 0:00:14]} Bg7 {[%emt 0:00:02]} 4. Bg2 {[%emt 0:00:11]} O-O {[%emt 0:00:03]} 5. O-O {[%emt 0:00:32]} d6 {[%emt 0:00:02]} 6. Nc3 {[%emt 0:01:18]} Nbd7 {[%emt 0:00:03]} 7. e4 {[%emt 0:00:23]} e5 {[%emt 0:00:03]} 8. Re1 {[%emt 0:00:23]} c6 {[%emt 0:00:03]} 9. a4 {[%emt 0:00:10]} Qc7 {[%emt 0:00:55]} 10. h3 {[%emt 0:01:10]} b6 {[%emt 0:00:49]} 11. Bg5 {[%emt 0:00:35]} h6 {[%emt 0:01:43]} 12. Be3 {[%emt 0:00:14]} Bb7 {[%emt 0:00:12]} 13. Qd2 {[%emt 0:00:11]} Kh7 {[%emt 0:00:09]} 14. Rad1 {[%emt 0:00:25]} Rfe8 {[%emt 0:02:42]} 15. Kh2 {[%emt 0:03:30]} a6 {[%emt 0:03:53]} 16. dxe5 {[%emt 0:05:22]} dxe5 {[%emt 0:00:20]} 17. Nh4 {[%emt 0:04:48]} Rad8 {[%emt 0:02:13]} 18. Qe2 {[%emt 0:01:19]} b5 {[%emt 0:01:45]} 19. axb5 {[%emt 0:00:29]} axb5 {[%emt 0:00:10]} 20. f4 {[%emt 0:08:10]} exf4 {[%emt 0:03:51]} 21. Bxf4 {[%emt 0:00:39]} Ne5 {[%emt 0:00:12]} 22. Rxd8 {[%emt 0:03:04]} Rxd8 {[%emt 0:00:04]} 23. Bxe5 {[%emt 0:04:05]} Qxe5 {[%emt 0:00:11]} 24. Nf3 {[%emt 0:00:09]} Qc7 {[%emt 0:01:55]} 25. e5 {[%emt 0:01:41]} Re8 {[%emt 0:00:45]} 26. Qd3 {[%emt 0:11:47]} Nd7 {[%emt 0:06:04]} 27. e6 {[%emt 0:11:47]} Nc5 {[%emt 0:05:21]} 28. Qe3 {[%emt 0:08:33]} Nxe6 {[%emt 0:00:17]} 29. Nh4 {[%emt 0:02:07]} Bd4 {[%emt 0:09:06]} 30. Qd3 {[%emt 0:04:09]} Rd8 {[%emt 0:13:56]} 31. Qf1 {[%emt 0:03:53]} Ng5 {[%emt 0:03:39]} 32. Nf3 {[%emt 0:02:04]} Nxf3+ {[%emt 0:04:49]} 33. Qxf3 {[%emt 0:00:18]} Rd7 {[%emt 0:12:25]} 34. Re8 {[%emt 0:13:38]} c5 {[%emt 0:01:54]} 35. Ne4 {[%emt 0:04:38]} f5 {[%emt 0:01:40]} 36. Qb3 {[%emt 0:00:14]} c4 {[%emt 0:00:41]} 37. Qb4 {[%emt 0:01:27]} Bxe4 {[%emt 0:00:13]} 38. Qf8 {[%emt 0:00:31]} h5 {[%emt 0:00:25]} 39. Qg8+ {[%emt 0:00:20]} Kh6 {[%emt 0:00:06]} 40. Re6 {[%emt 0:00:20]} Bg7 {[%emt 0:00:40]} 41. Qe8 {[%emt 0:01:52]} Rf7 {[%emt 0:00:06]} 0-1

[Event "30th Tamil Nadu IM Norm 2024"]
[Site "Coimbatore"]
[Date "2024.10.01"]
[Round "2.1"]
[White "Bharadia Yash"]
[Black "Manik, Mikulas"]
[Result "0-1"]
[ECO "C78"]
[WhiteElo "2415"]
[BlackElo "2316"]
[Annotator "RC"]
[PlyCount "65"]
[EventDate "2024.09.15"]
[EventCountry "IND"]
[SourceTitle "playchess.com"]
[Source "ChessBase"]
[SourceQuality "1"]
[TimeControl "5400+30"]

1. e4 {[%emt 0:00:15]} e5 {[%emt 0:00:02]} 2. Nf3 {[%emt 0:00:07]} Nc6 {[%emt 0:00:02]} 3. Bb5 {[%emt 0:00:07]} a6 {[%emt 0:00:02]} 4. Ba4 {[%emt 0:00:07]} Nf6 {[%emt 0:00:03]} 5. O-O {[%emt 0:00:07]} b5 {[%emt 0:00:02]} 6. Bb3 {[%emt 0:00:06]} Bb7 {[%emt 0:00:01]} 7. Re1 {[%emt 0:00:33]} Bc5 {[%emt 0:00:05]} 8. c3 {[%emt 0:00:35]} d6 {[%emt 0:00:02]} 9. d4 {[%emt 0:01:07]} Bb6 {[%emt 0:00:08]} 10. a4 {[%emt 0:02:00]} h6 {[%emt 0:00:24]} 11. h3 {[%emt 0:18:31]} O-O {[%emt 0:01:16]} 12. dxe5 {[%emt 0:03:28]} Nxe5 {[%emt 0:00:57]} 13. Nxe5 {[%emt 0:01:34]} dxe5 {[%emt 0:00:04]} 14. Qf3 {[%emt 0:00:34]} Kh8 {[%emt 0:07:35]} 15. Qf5 {[%emt 0:10:30]} g6 {[%emt 0:12:25]} 16. Qxe5 {[%emt 0:25:25]} Re8 {[%emt 0:00:21]} 17. Qf4 {[%emt 0:01:29]} g5 {[%emt 0:03:29]} 18. Qf3 {[%emt 0:13:56]} Rxe4 {[%emt 0:14:50]} 19. Rxe4 {[%emt 0:01:47]} Bxe4 {[%emt 0:04:59]} 20. Qe2 {[%emt 0:01:01]} Qd6 {[%emt 0:10:53]} 21. Be3 {[%emt 0:04:16]} Re8 {[%emt 0:03:21]} 22. Bxb6 {[%emt 0:06:55]} cxb6 {[%emt 0:03:31]} 23. Qd2 {[%emt 0:00:36]} Bd3 {[%emt 0:00:21]} 24. Bd1 {[%emt 0:01:34]} Ne4 {[%emt 0:01:17]} 25. Qe3 {[%emt 0:00:43]} Bxb1 {[%emt 0:00:11]} 26. Rxb1 {[%emt 0:00:18]} Nf6 {[%emt 0:00:01]} 27. Qg3 {[%emt 0:02:23]} Re1+ {[%emt 0:01:04]} 28. Kh2 {[%emt 0:00:02]} Rxd1 {[%emt 0:04:25]} 29. Rxd1 {[%emt 0:00:04]} Qxd1 {[%emt 0:00:05]} 30. axb5 {[%emt 0:00:08]} axb5 {[%emt 0:00:08]} 31. Qb8+ {[%emt 0:00:16]} Kg7 {[%emt 0:00:41]} 32. Qxb6 {[%emt 0:00:02]} Qb3 {[%emt 0:00:50]} 33. Kg1 {[%emt 0:00:28]} 0-1

[Event "30th Tamil Nadu IM Norm 2024"]
[Site "Coimbatore"]
[Date "2024.10.01"]
[Round "2.2"]
[White "Arnav Maheshwari"]
[Black "Annageldyev, Orazly"]
[Result "1-0"]
[ECO "A62"]
[WhiteElo "2293"]
[BlackElo "2105"]
[Annotator "RC"]
[PlyCount "91"]
[EventDate "2024.09.15"]
[EventCountry "IND"]
[SourceTitle "playchess.com"]
[Source "ChessBase"]
[SourceQuality "1"]
[TimeControl "5400+30"]

1. d4 {[%emt 0:01:06]} Nf6 {[%emt 0:00:11]} 2. c4 {[%emt 0:00:08]} c5 {[%emt 0:00:16]} 3. d5 {[%emt 0:00:12]} g6 {[%emt 0:00:28]} 4. Nc3 {[%emt 0:00:13]} Bg7 {[%emt 0:00:08]} 5. g3 {[%emt 0:00:15]} O-O {[%emt 0:00:33]} 6. Bg2 {[%emt 0:00:10]} d6 {[%emt 0:00:25]} 7. Nf3 {[%emt 0:00:40]} e6 {[%emt 0:00:22]} 8. O-O {[%emt 0:00:39]} exd5 {[%emt 0:00:46]} 9. cxd5 {[%emt 0:00:10]} Re8 {[%emt 0:00:42]} 10. Bf4 {[%emt 0:00:10]} a6 {[%emt 0:04:36]} 11. a4 {[%emt 0:02:29]} Qc7 {[%emt 0:01:13]} 12. Nd2 {[%emt 0:03:33]} Nh5 {[%emt 0:00:48]} 13. e4 {[%emt 0:03:42]} Nd7 {[%emt 0:06:45]} 14. Nc4 {[%emt 0:09:57]} Nxf4 {[%emt 0:07:12]} 15. gxf4 {[%emt 0:00:10]} Nb6 {[%emt 0:00:20]} 16. Ne3 {[%emt 0:04:39]} f6 {[%emt 0:08:51]} 17. h4 {[%emt 0:05:31]} Nd7 {[%emt 0:05:05]} 18. h5 {[%emt 0:03:26]} Rb8 {[%emt 0:00:41]} 19. f5 {[%emt 0:03:23]} gxh5 {[%emt 0:03:20]} 20. Qxh5 {[%emt 0:01:10]} Re7 {[%emt 0:03:32]} 21. Kh2 {[%emt 0:04:14]} Qd8 {[%emt 0:01:23]} 22. Rh1 {[%emt 0:02:34]} Nf8 {[%emt 0:03:04]} 23. Ng4 {[%emt 0:02:23]} Qe8 {[%emt 0:04:33]} 24. Qh4 {[%emt 0:00:14]} Rf7 {[%emt 0:06:55]} 25. Qg3 {[%emt 0:00:34]} Kh8 {[%emt 0:01:22]} 26. Qxd6 {[%emt 0:02:03]} Nd7 {[%emt 0:00:31]} 27. Qg3 {[%emt 0:05:14]} b5 {[%emt 0:00:37]} 28. axb5 {[%emt 0:02:44]} axb5 {[%emt 0:01:36]} 29. Bf3 {[%emt 0:04:52]} Ne5 {[%emt 0:01:33]} 30. Rag1 {[%emt 0:04:57]} b4 {[%emt 0:04:25]} 31. Ne2 {[%emt 0:01:39]} Nxg4+ {[%emt 0:03:40]} 32. Bxg4 {[%emt 0:00:36]} Qe5 {[%emt 0:00:16]} 33. Bh5 {[%emt 0:06:39]} Qxg3+ {[%emt 0:02:53]} 34. Kxg3 {[%emt 0:02:57]} Re7 {[%emt 0:01:17]} 35. Kf3 {[%emt 0:01:30]} c4 {[%emt 0:04:28]} 36. Rc1 {[%emt 0:03:41]} c3 {[%emt 0:08:02]} 37. Nd4 {[%emt 0:02:42]} cxb2 {[%emt 0:05:05]} 38. Rc2 {[%emt 0:00:19]} Ra8 {[%emt 0:06:37]} 39. Rb1 {[%emt 0:01:20]} Ra3+ {[%emt 0:00:53]} 40. Kg2 {[%emt 0:00:06]} Bb7 {[%emt 0:00:35]} 41. Ne6 {[%emt 0:02:42]} Ba6 {[%emt 0:03:01]} 42. Rbxb2 {[%emt 0:00:07]} b3 {[%emt 0:01:15]} 43. Rc3 {[%emt 0:00:24]} h6 {[%emt 0:00:51]} 44. Rcxb3 {[%emt 0:00:25]} Rxb3 {[%emt 0:00:41]} 45. Rxb3 {[%emt 0:00:07]} Bb7 {[%emt 0:00:32]} 46. Nc5 {[%emt 0:00:08]} 1-0

[Event "30th Tamil Nadu IM Norm 2024"]
[Site "Coimbatore"]
[Date "2024.10.01"]
[Round "2.3"]
[White "Aakash G"]
[Black "Dhruva Thota"]
[Result "1/2-1/2"]
[ECO "E60"]
[WhiteElo "2279"]
[BlackElo "2342"]
[Annotator "RC"]
[PlyCount "60"]
[EventDate "2024.09.15"]
[EventCountry "IND"]
[SourceTitle "playchess.com"]
[Source "ChessBase"]
[SourceQuality "1"]
[TimeControl "5400+30"]

1. b3 {[%emt 0:00:03]} Nf6 {[%emt 0:01:10]} 2. Bb2 {[%emt 0:00:04]} g6 {[%emt 0:00:11]} 3. c4 {[%emt 0:00:03]} Bg7 {[%emt 0:01:21]} 4. g3 {[%emt 0:00:10]} O-O {[%emt 0:01:30]} 5. Bg2 {[%emt 0:00:37]} c5 {[%emt 0:01:38]} 6. Nf3 {[%emt 0:00:29]} d6 {[%emt 0:02:18]} 7. d4 {[%emt 0:02:26]} d5 {[%emt 0:00:56]} 8. Nbd2 {[%emt 0:03:16]} cxd4 {[%emt 0:00:30]} 9. Nxd4 {[%emt 0:04:51]} Nc6 {[%emt 0:02:43]} 10. O-O {[%emt 0:01:57]} Bd7 {[%emt 0:00:27]} 11. cxd5 {[%emt 0:04:57]} Nxd5 {[%emt 0:00:24]} 12. Nc4 {[%emt 0:00:41]} e6 {[%emt 0:16:10]} 13. Rc1 {[%emt 0:02:44]} Ndb4 {[%emt 0:18:49]} 14. a3 {[%emt 0:07:42]} Bxd4 {[%emt 0:02:15]} 15. Bxd4 {[%emt 0:01:04]} Nxd4 {[%emt 0:00:42]} 16. Qxd4 {[%emt 0:01:20]} Nc6 {[%emt 0:03:15]} 17. Qf4 {[%emt 0:07:47]} Qe7 {[%emt 0:02:29]} 18. Qc7 {[%emt 0:01:52]} Rfc8 {[%emt 0:04:43]} 19. Qf4 {[%emt 0:16:17]} Rd8 {[%emt 0:08:08]} 20. Rfd1 {[%emt 0:14:16]} Be8 {[%emt 0:05:47]} 21. Bxc6 {[%emt 0:02:40]} Bxc6 {[%emt 0:03:02]} 22. Ne5 {[%emt 0:00:29]} Rxd1+ {[%emt 0:02:36]} 23. Rxd1 {[%emt 0:00:06]} Be8 {[%emt 0:00:35]} 24. Qd4 {[%emt 0:02:05]} f6 {[%emt 0:05:20]} 25. Ng4 {[%emt 0:03:42]} Kg7 {[%emt 0:01:22]} 26. Rc1 {[%emt 0:02:07]} Bc6 {[%emt 0:03:23]} 27. b4 {[%emt 0:00:56]} a6 {[%emt 0:02:05]} 28. Rd1 {[%emt 0:04:10]} Rc8 {[%emt 0:02:11]} 29. h4 {[%emt 0:03:02]} h5 {[%emt 0:01:43]} 30. Ne3 {[%emt 0:00:45]} Rc7 {[%emt 0:01:27]} 1/2-1/2